{"text_format":"3","workbook":"xlsx","n_sheets":3,"sheets":["Program","Introducere date","Căutare nume"],"not_rendered":{"external_links":1,"defined_names":5},"read":"whole","date_system":"1900"}

{"sheet":"Program","index":0,"n_rows":23,"n_cols":9,"rows_kept":23,"merged":[[1,1,2,3]]}
[]
[null,"ORAR ZILNIC",{"$nulls":4},"Pentru săptămâna ","Afişaţi programul pentru: "]
[{"$nulls":5},{"$f":"WEEKDAY(SăptămânaDin,1)","v":3},"2012-07-03","Iulian"]
[null,null,{"$f":"$F$3=COLUMN(A$1)","v":false},{"$f":"$F$3=COLUMN(B$1)","v":false},true,false,false,false,false]
[null,null,{"$f":"COLUMN(A$1)-MATCH(TRUE,$C$4:$I$4,0)+SăptămânaDin+1","v":"2012-07-02"},"2012-07-03","2012-07-04","2012-07-05","2012-07-06","2012-07-07","2012-07-08"]
[null,"ORĂ","LUNI","MARŢI","MIERCURI","JOI","VINERI","SÂMBĂTĂ","DUMINICĂ"]
[null,"06:00:00",{"$f":"IFERROR(INDEX(tblData[],MATCH(C$5+$B7&AfișareNume,tblData[DATA ŞI ORA]&tblData[CINE],0),3),\"\")","v":""},{"$f":"IFERROR(INDEX(tblData[],MATCH(D$5+$B7&AfișareNume,tblData[DATA ŞI ORA]&tblData[CINE],0),3),\"\")","v":""},{"$f":"IFERROR(INDEX(tblData[],MATCH(E$5+$B7&AfișareNume,tblData[DATA ŞI ORA]&tblData[CINE],0),3),\"\")","v":""},{"$f":"IFERROR(INDEX(tblData[],MATCH(F$5+$B7&AfișareNume,tblData[DATA ŞI ORA]&tblData[CINE],0),3),\"\")","v":""},{"$f":"IFERROR(INDEX(tblData[],MATCH(G$5+$B7&AfișareNume,tblData[DATA ŞI ORA]&tblData[CINE],0),3),\"\")","v":""},{"$f":"IFERROR(INDEX(tblData[],MATCH(H$5+$B7&AfișareNume,tblData[DATA ŞI ORA]&tblData[CINE],0),3),\"\")","v":""},{"$f":"IFERROR(INDEX(tblData[],MATCH(I$5+$B7&AfișareNume,tblData[DATA ŞI ORA]&tblData[CINE],0),3),\"\")","v":""}]
[null,"07:00:00",{"$f":"IFERROR(INDEX(tblData[],MATCH(C$5+$B8&AfișareNume,tblData[DATA ŞI ORA]&tblData[CINE],0),3),\"\")","v":""},{"$f":"IFERROR(INDEX(tblData[],MATCH(D$5+$B8&AfișareNume,tblData[DATA ŞI ORA]&tblData[CINE],0),3),\"\")","v":""},{"$f":"IFERROR(INDEX(tblData[],MATCH(E$5+$B8&AfișareNume,tblData[DATA ŞI ORA]&tblData[CINE],0),3),\"\")","v":""},{"$f":"IFERROR(INDEX(tblData[],MATCH(F$5+$B8&AfișareNume,tblData[DATA ŞI ORA]&tblData[CINE],0),3),\"\")","v":""},{"$f":"IFERROR(INDEX(tblData[],MATCH(G$5+$B8&AfișareNume,tblData[DATA ŞI ORA]&tblData[CINE],0),3),\"\")","v":""},{"$f":"IFERROR(INDEX(tblData[],MATCH(H$5+$B8&AfișareNume,tblData[DATA ŞI ORA]&tblData[CINE],0),3),\"\")","v":""},{"$f":"IFERROR(INDEX(tblData[],MATCH(I$5+$B8&AfișareNume,tblData[DATA ŞI ORA]&tblData[CINE],0),3),\"\")","v":""}]
[null,"08:00:00",{"$f":"IFERROR(INDEX(tblData[],MATCH(C$5+$B9&AfișareNume,tblData[DATA ŞI ORA]&tblData[CINE],0),3),\"\")","v":""},{"$f":"IFERROR(INDEX(tblData[],MATCH(D$5+$B9&AfișareNume,tblData[DATA ŞI ORA]&tblData[CINE],0),3),\"\")","v":""},{"$f":"IFERROR(INDEX(tblData[],MATCH(E$5+$B9&AfișareNume,tblData[DATA ŞI ORA]&tblData[CINE],0),3),\"\")","v":""},{"$f":"IFERROR(INDEX(tblData[],MATCH(F$5+$B9&AfișareNume,tblData[DATA ŞI ORA]&tblData[CINE],0),3),\"\")","v":""},{"$f":"IFERROR(INDEX(tblData[],MATCH(G$5+$B9&AfișareNume,tblData[DATA ŞI ORA]&tblData[CINE],0),3),\"\")","v":""},{"$f":"IFERROR(INDEX(tblData[],MATCH(H$5+$B9&AfișareNume,tblData[DATA ŞI ORA]&tblData[CINE],0),3),\"\")","v":""},{"$f":"IFERROR(INDEX(tblData[],MATCH(I$5+$B9&AfișareNume,tblData[DATA ŞI ORA]&tblData[CINE],0),3),\"\")","v":""}]
[null,"09:00:00",{"$f":"IFERROR(INDEX(tblData[],MATCH(C$5+$B10&AfișareNume,tblData[DATA ŞI ORA]&tblData[CINE],0),3),\"\")","v":""},{"$f":"IFERROR(INDEX(tblData[],MATCH(D$5+$B10&AfișareNume,tblData[DATA ŞI ORA]&tblData[CINE],0),3),\"\")","v":""},{"$f":"IFERROR(INDEX(tblData[],MATCH(E$5+$B10&AfișareNume,tblData[DATA ŞI ORA]&tblData[CINE],0),3),\"\")","v":""},{"$f":"IFERROR(INDEX(tblData[],MATCH(F$5+$B10&AfișareNume,tblData[DATA ŞI ORA]&tblData[CINE],0),3),\"\")","v":""},{"$f":"IFERROR(INDEX(tblData[],MATCH(G$5+$B10&AfișareNume,tblData[DATA ŞI ORA]&tblData[CINE],0),3),\"\")","v":""},{"$f":"IFERROR(INDEX(tblData[],MATCH(H$5+$B10&AfișareNume,tblData[DATA ŞI ORA]&tblData[CINE],0),3),\"\")","v":""},{"$f":"IFERROR(INDEX(tblData[],MATCH(I$5+$B10&AfișareNume,tblData[DATA ŞI ORA]&tblData[CINE],0),3),\"\")","v":""}]
[null,"10:00:00",{"$f":"IFERROR(INDEX(tblData[],MATCH(C$5+$B11&AfișareNume,tblData[DATA ŞI ORA]&tblData[CINE],0),3),\"\")","v":""},{"$f":"IFERROR(INDEX(tblData[],MATCH(D$5+$B11&AfișareNume,tblData[DATA ŞI ORA]&tblData[CINE],0),3),\"\")","v":""},{"$f":"IFERROR(INDEX(tblData[],MATCH(E$5+$B11&AfișareNume,tblData[DATA ŞI ORA]&tblData[CINE],0),3),\"\")","v":"Paradă în oraş"},{"$f":"IFERROR(INDEX(tblData[],MATCH(F$5+$B11&AfișareNume,tblData[DATA ŞI ORA]&tblData[CINE],0),3),\"\")","v":""},{"$f":"IFERROR(INDEX(tblData[],MATCH(G$5+$B11&AfișareNume,tblData[DATA ŞI ORA]&tblData[CINE],0),3),\"\")","v":""},{"$f":"IFERROR(INDEX(tblData[],MATCH(H$5+$B11&AfișareNume,tblData[DATA ŞI ORA]&tblData[CINE],0),3),\"\")","v":""},{"$f":"IFERROR(INDEX(tblData[],MATCH(I$5+$B11&AfișareNume,tblData[DATA ŞI ORA]&tblData[CINE],0),3),\"\")","v":""}]
[null,"11:00:00",{"$f":"IFERROR(INDEX(tblData[],MATCH(C$5+$B12&AfișareNume,tblData[DATA ŞI ORA]&tblData[CINE],0),3),\"\")","v":""},{"$f":"IFERROR(INDEX(tblData[],MATCH(D$5+$B12&AfișareNume,tblData[DATA ŞI ORA]&tblData[CINE],0),3),\"\")","v":""},{"$f":"IFERROR(INDEX(tblData[],MATCH(E$5+$B12&AfișareNume,tblData[DATA ŞI ORA]&tblData[CINE],0),3),\"\")","v":""},{"$f":"IFERROR(INDEX(tblData[],MATCH(F$5+$B12&AfișareNume,tblData[DATA ŞI ORA]&tblData[CINE],0),3),\"\")","v":""},{"$f":"IFERROR(INDEX(tblData[],MATCH(G$5+$B12&AfișareNume,tblData[DATA ŞI ORA]&tblData[CINE],0),3),\"\")","v":"Grătar în familie"},{"$f":"IFERROR(INDEX(tblData[],MATCH(H$5+$B12&AfișareNume,tblData[DATA ŞI ORA]&tblData[CINE],0),3),\"\")","v":""},{"$f":"IFERROR(INDEX(tblData[],MATCH(I$5+$B12&AfișareNume,tblData[DATA ŞI ORA]&tblData[CINE],0),3),\"\")","v":""}]
[null,"12:00:00",{"$f":"IFERROR(INDEX(tblData[],MATCH(C$5+$B13&AfișareNume,tblData[DATA ŞI ORA]&tblData[CINE],0),3),\"\")","v":""},{"$f":"IFERROR(INDEX(tblData[],MATCH(D$5+$B13&AfișareNume,tblData[DATA ŞI ORA]&tblData[CINE],0),3),\"\")","v":""},{"$f":"IFERROR(INDEX(tblData[],MATCH(E$5+$B13&AfișareNume,tblData[DATA ŞI ORA]&tblData[CINE],0),3),\"\")","v":""},{"$f":"IFERROR(INDEX(tblData[],MATCH(F$5+$B13&AfișareNume,tblData[DATA ŞI ORA]&tblData[CINE],0),3),\"\")","v":""},{"$f":"IFERROR(INDEX(tblData[],MATCH(G$5+$B13&AfișareNume,tblData[DATA ŞI ORA]&tblData[CINE],0),3),\"\")","v":""},{"$f":"IFERROR(INDEX(tblData[],MATCH(H$5+$B13&AfișareNume,tblData[DATA ŞI ORA]&tblData[CINE],0),3),\"\")","v":""},{"$f":"IFERROR(INDEX(tblData[],MATCH(I$5+$B13&AfișareNume,tblData[DATA ŞI ORA]&tblData[CINE],0),3),\"\")","v":""}]
[null,"13:00:00",{"$f":"IFERROR(INDEX(tblData[],MATCH(C$5+$B14&AfișareNume,tblData[DATA ŞI ORA]&tblData[CINE],0),3),\"\")","v":""},{"$f":"IFERROR(INDEX(tblData[],MATCH(D$5+$B14&AfișareNume,tblData[DATA ŞI ORA]&tblData[CINE],0),3),\"\")","v":""},{"$f":"IFERROR(INDEX(tblData[],MATCH(E$5+$B14&AfișareNume,tblData[DATA ŞI ORA]&tblData[CINE],0),3),\"\")","v":""},{"$f":"IFERROR(INDEX(tblData[],MATCH(F$5+$B14&AfișareNume,tblData[DATA ŞI ORA]&tblData[CINE],0),3),\"\")","v":""},{"$f":"IFERROR(INDEX(tblData[],MATCH(G$5+$B14&AfișareNume,tblData[DATA ŞI ORA]&tblData[CINE],0),3),\"\")","v":""},{"$f":"IFERROR(INDEX(tblData[],MATCH(H$5+$B14&AfișareNume,tblData[DATA ŞI ORA]&tblData[CINE],0),3),\"\")","v":""},{"$f":"IFERROR(INDEX(tblData[],MATCH(I$5+$B14&AfișareNume,tblData[DATA ŞI ORA]&tblData[CINE],0),3),\"\")","v":""}]
[null,"14:00:00",{"$f":"IFERROR(INDEX(tblData[],MATCH(C$5+$B15&AfișareNume,tblData[DATA ŞI ORA]&tblData[CINE],0),3),\"\")","v":""},{"$f":"IFERROR(INDEX(tblData[],MATCH(D$5+$B15&AfișareNume,tblData[DATA ŞI ORA]&tblData[CINE],0),3),\"\")","v":""},{"$f":"IFERROR(INDEX(tblData[],MATCH(E$5+$B15&AfișareNume,tblData[DATA ŞI ORA]&tblData[CINE],0),3),\"\")","v":""},{"$f":"IFERROR(INDEX(tblData[],MATCH(F$5+$B15&AfișareNume,tblData[DATA ŞI ORA]&tblData[CINE],0),3),\"\")","v":""},{"$f":"IFERROR(INDEX(tblData[],MATCH(G$5+$B15&AfișareNume,tblData[DATA ŞI ORA]&tblData[CINE],0),3),\"\")","v":""},{"$f":"IFERROR(INDEX(tblData[],MATCH(H$5+$B15&AfișareNume,tblData[DATA ŞI ORA]&tblData[CINE],0),3),\"\")","v":""},{"$f":"IFERROR(INDEX(tblData[],MATCH(I$5+$B15&AfișareNume,tblData[DATA ŞI ORA]&tblData[CINE],0),3),\"\")","v":""}]
[null,"15:00:00",{"$f":"IFERROR(INDEX(tblData[],MATCH(C$5+$B16&AfișareNume,tblData[DATA ŞI ORA]&tblData[CINE],0),3),\"\")","v":""},{"$f":"IFERROR(INDEX(tblData[],MATCH(D$5+$B16&AfișareNume,tblData[DATA ŞI ORA]&tblData[CINE],0),3),\"\")","v":""},{"$f":"IFERROR(INDEX(tblData[],MATCH(E$5+$B16&AfișareNume,tblData[DATA ŞI ORA]&tblData[CINE],0),3),\"\")","v":""},{"$f":"IFERROR(INDEX(tblData[],MATCH(F$5+$B16&AfișareNume,tblData[DATA ŞI ORA]&tblData[CINE],0),3),\"\")","v":""},{"$f":"IFERROR(INDEX(tblData[],MATCH(G$5+$B16&AfișareNume,tblData[DATA ŞI ORA]&tblData[CINE],0),3),\"\")","v":""},{"$f":"IFERROR(INDEX(tblData[],MATCH(H$5+$B16&AfișareNume,tblData[DATA ŞI ORA]&tblData[CINE],0),3),\"\")","v":""},{"$f":"IFERROR(INDEX(tblData[],MATCH(I$5+$B16&AfișareNume,tblData[DATA ŞI ORA]&tblData[CINE],0),3),\"\")","v":""}]
[null,"16:00:00",{"$f":"IFERROR(INDEX(tblData[],MATCH(C$5+$B17&AfișareNume,tblData[DATA ŞI ORA]&tblData[CINE],0),3),\"\")","v":""},{"$f":"IFERROR(INDEX(tblData[],MATCH(D$5+$B17&AfișareNume,tblData[DATA ŞI ORA]&tblData[CINE],0),3),\"\")","v":"Plecare la cabană"},{"$f":"IFERROR(INDEX(tblData[],MATCH(E$5+$B17&AfișareNume,tblData[DATA ŞI ORA]&tblData[CINE],0),3),\"\")","v":""},{"$f":"IFERROR(INDEX(tblData[],MATCH(F$5+$B17&AfișareNume,tblData[DATA ŞI ORA]&tblData[CINE],0),3),\"\")","v":""},{"$f":"IFERROR(INDEX(tblData[],MATCH(G$5+$B17&AfișareNume,tblData[DATA ŞI ORA]&tblData[CINE],0),3),\"\")","v":""},{"$f":"IFERROR(INDEX(tblData[],MATCH(H$5+$B17&AfișareNume,tblData[DATA ŞI ORA]&tblData[CINE],0),3),\"\")","v":""},{"$f":"IFERROR(INDEX(tblData[],MATCH(I$5+$B17&AfișareNume,tblData[DATA ŞI ORA]&tblData[CINE],0),3),\"\")","v":""}]
[null,"17:00:00",{"$f":"IFERROR(INDEX(tblData[],MATCH(C$5+$B18&AfișareNume,tblData[DATA ŞI ORA]&tblData[CINE],0),3),\"\")","v":""},{"$f":"IFERROR(INDEX(tblData[],MATCH(D$5+$B18&AfișareNume,tblData[DATA ŞI ORA]&tblData[CINE],0),3),\"\")","v":""},{"$f":"IFERROR(INDEX(tblData[],MATCH(E$5+$B18&AfișareNume,tblData[DATA ŞI ORA]&tblData[CINE],0),3),\"\")","v":""},{"$f":"IFERROR(INDEX(tblData[],MATCH(F$5+$B18&AfișareNume,tblData[DATA ŞI ORA]&tblData[CINE],0),3),\"\")","v":""},{"$f":"IFERROR(INDEX(tblData[],MATCH(G$5+$B18&AfișareNume,tblData[DATA ŞI ORA]&tblData[CINE],0),3),\"\")","v":""},{"$f":"IFERROR(INDEX(tblData[],MATCH(H$5+$B18&AfișareNume,tblData[DATA ŞI ORA]&tblData[CINE],0),3),\"\")","v":""},{"$f":"IFERROR(INDEX(tblData[],MATCH(I$5+$B18&AfișareNume,tblData[DATA ŞI ORA]&tblData[CINE],0),3),\"\")","v":"Revenire acasă"}]
[null,"18:00:00",{"$f":"IFERROR(INDEX(tblData[],MATCH(C$5+$B19&AfișareNume,tblData[DATA ŞI ORA]&tblData[CINE],0),3),\"\")","v":"Luat medicamentele"},{"$f":"IFERROR(INDEX(tblData[],MATCH(D$5+$B19&AfișareNume,tblData[DATA ŞI ORA]&tblData[CINE],0),3),\"\")","v":""},{"$f":"IFERROR(INDEX(tblData[],MATCH(E$5+$B19&AfișareNume,tblData[DATA ŞI ORA]&tblData[CINE],0),3),\"\")","v":""},{"$f":"IFERROR(INDEX(tblData[],MATCH(F$5+$B19&AfișareNume,tblData[DATA ŞI ORA]&tblData[CINE],0),3),\"\")","v":""},{"$f":"IFERROR(INDEX(tblData[],MATCH(G$5+$B19&AfișareNume,tblData[DATA ŞI ORA]&tblData[CINE],0),3),\"\")","v":""},{"$f":"IFERROR(INDEX(tblData[],MATCH(H$5+$B19&AfișareNume,tblData[DATA ŞI ORA]&tblData[CINE],0),3),\"\")","v":""},{"$f":"IFERROR(INDEX(tblData[],MATCH(I$5+$B19&AfișareNume,tblData[DATA ŞI ORA]&tblData[CINE],0),3),\"\")","v":""}]
[null,"19:00:00",{"$f":"IFERROR(INDEX(tblData[],MATCH(C$5+$B20&AfișareNume,tblData[DATA ŞI ORA]&tblData[CINE],0),3),\"\")","v":""},{"$f":"IFERROR(INDEX(tblData[],MATCH(D$5+$B20&AfișareNume,tblData[DATA ŞI ORA]&tblData[CINE],0),3),\"\")","v":""},{"$f":"IFERROR(INDEX(tblData[],MATCH(E$5+$B20&AfișareNume,tblData[DATA ŞI ORA]&tblData[CINE],0),3),\"\")","v":""},{"$f":"IFERROR(INDEX(tblData[],MATCH(F$5+$B20&AfișareNume,tblData[DATA ŞI ORA]&tblData[CINE],0),3),\"\")","v":""},{"$f":"IFERROR(INDEX(tblData[],MATCH(G$5+$B20&AfișareNume,tblData[DATA ŞI ORA]&tblData[CINE],0),3),\"\")","v":""},{"$f":"IFERROR(INDEX(tblData[],MATCH(H$5+$B20&AfișareNume,tblData[DATA ŞI ORA]&tblData[CINE],0),3),\"\")","v":""},{"$f":"IFERROR(INDEX(tblData[],MATCH(I$5+$B20&AfișareNume,tblData[DATA ŞI ORA]&tblData[CINE],0),3),\"\")","v":""}]
[null,"20:00:00",{"$f":"IFERROR(INDEX(tblData[],MATCH(C$5+$B21&AfișareNume,tblData[DATA ŞI ORA]&tblData[CINE],0),3),\"\")","v":"Film în familie"},{"$f":"IFERROR(INDEX(tblData[],MATCH(D$5+$B21&AfișareNume,tblData[DATA ŞI ORA]&tblData[CINE],0),3),\"\")","v":""},{"$f":"IFERROR(INDEX(tblData[],MATCH(E$5+$B21&AfișareNume,tblData[DATA ŞI ORA]&tblData[CINE],0),3),\"\")","v":""},{"$f":"IFERROR(INDEX(tblData[],MATCH(F$5+$B21&AfișareNume,tblData[DATA ŞI ORA]&tblData[CINE],0),3),\"\")","v":"Spectacol de artificii"},{"$f":"IFERROR(INDEX(tblData[],MATCH(G$5+$B21&AfișareNume,tblData[DATA ŞI ORA]&tblData[CINE],0),3),\"\")","v":""},{"$f":"IFERROR(INDEX(tblData[],MATCH(H$5+$B21&AfișareNume,tblData[DATA ŞI ORA]&tblData[CINE],0),3),\"\")","v":""},{"$f":"IFERROR(INDEX(tblData[],MATCH(I$5+$B21&AfișareNume,tblData[DATA ŞI ORA]&tblData[CINE],0),3),\"\")","v":""}]
[null,"21:00:00",{"$f":"IFERROR(INDEX(tblData[],MATCH(C$5+$B22&AfișareNume,tblData[DATA ŞI ORA]&tblData[CINE],0),3),\"\")","v":""},{"$f":"IFERROR(INDEX(tblData[],MATCH(D$5+$B22&AfișareNume,tblData[DATA ŞI ORA]&tblData[CINE],0),3),\"\")","v":""},{"$f":"IFERROR(INDEX(tblData[],MATCH(E$5+$B22&AfișareNume,tblData[DATA ŞI ORA]&tblData[CINE],0),3),\"\")","v":""},{"$f":"IFERROR(INDEX(tblData[],MATCH(F$5+$B22&AfișareNume,tblData[DATA ŞI ORA]&tblData[CINE],0),3),\"\")","v":""},{"$f":"IFERROR(INDEX(tblData[],MATCH(G$5+$B22&AfișareNume,tblData[DATA ŞI ORA]&tblData[CINE],0),3),\"\")","v":""},{"$f":"IFERROR(INDEX(tblData[],MATCH(H$5+$B22&AfișareNume,tblData[DATA ŞI ORA]&tblData[CINE],0),3),\"\")","v":""},{"$f":"IFERROR(INDEX(tblData[],MATCH(I$5+$B22&AfișareNume,tblData[DATA ŞI ORA]&tblData[CINE],0),3),\"\")","v":""}]
[null,"22:00:00",{"$f":"IFERROR(INDEX(tblData[],MATCH(C$5+$B23&AfișareNume,tblData[DATA ŞI ORA]&tblData[CINE],0),3),\"\")","v":""},{"$f":"IFERROR(INDEX(tblData[],MATCH(D$5+$B23&AfișareNume,tblData[DATA ŞI ORA]&tblData[CINE],0),3),\"\")","v":""},{"$f":"IFERROR(INDEX(tblData[],MATCH(E$5+$B23&AfișareNume,tblData[DATA ŞI ORA]&tblData[CINE],0),3),\"\")","v":""},{"$f":"IFERROR(INDEX(tblData[],MATCH(F$5+$B23&AfișareNume,tblData[DATA ŞI ORA]&tblData[CINE],0),3),\"\")","v":""},{"$f":"IFERROR(INDEX(tblData[],MATCH(G$5+$B23&AfișareNume,tblData[DATA ŞI ORA]&tblData[CINE],0),3),\"\")","v":""},{"$f":"IFERROR(INDEX(tblData[],MATCH(H$5+$B23&AfișareNume,tblData[DATA ŞI ORA]&tblData[CINE],0),3),\"\")","v":""},{"$f":"IFERROR(INDEX(tblData[],MATCH(I$5+$B23&AfișareNume,tblData[DATA ŞI ORA]&tblData[CINE],0),3),\"\")","v":""}]

{"sheet":"Introducere date","index":1,"n_rows":14,"n_cols":4,"rows_kept":14}
[null,"INTRODUCERE DATE"]
[]
[null,"DATA ŞI ORA","CINE","ACTIVITATE"]
[null,"2012-07-02T08:00:00","Monica","Rezervare doctor"]
[null,"2012-07-02T18:00:00","Iulian","Luat medicamentele"]
[null,"2012-07-02T18:30:00","Iulian","Cină cu Cristina"]
[null,"2012-07-02T20:00:00","Iulian","Film în familie"]
[null,"2012-07-03T16:00:00","Iulian","Plecare la cabană"]
[null,"2012-07-04T10:00:00","Iulian","Paradă în oraş"]
[null,"2012-07-05T20:00:00","Iulian","Spectacol de artificii"]
[null,"2012-07-06T11:00:00","Iulian","Grătar în familie"]
[null,"2012-07-07","Iulian","Picnic în comunitate"]
[null,"2012-07-08T17:00:00","Iulian","Revenire acasă"]
[null,"2012-07-02T10:00:00","Monica","Lecţii de pian"]

{"sheet":"Căutare nume","index":2,"n_rows":132,"n_cols":2,"rows_kept":132,"hidden":true,"merged":[[0,0,0,1]]}
["Această foaie populează lista verticală de nume în foaia Program din celula H3. Orice modificare efectuată la această foaie poate duce la erori."]
["NUME UNIC","NUMĂR RÂND"]
[{"$f":"IFERROR(INDEX(CâmpCine,MATCH(0,COUNTIF($A$2:A2,CâmpCine),0)),\"\")","v":"Monica"},{"$f":"IF(A3=\"\",\"\",ROW())","v":3}]
[{"$f":"IFERROR(INDEX(CâmpCine,MATCH(0,COUNTIF($A$2:A3,CâmpCine),0)),\"\")","v":"Iulian"},{"$f":"IF(A4=\"\",\"\",ROW())","v":4}]
[{"$f":"IFERROR(INDEX(CâmpCine,MATCH(0,COUNTIF($A$2:A4,CâmpCine),0)),\"\")","v":""},""]
[{"$f":"IFERROR(INDEX(CâmpCine,MATCH(0,COUNTIF($A$2:A5,CâmpCine),0)),\"\")","v":""},""]
[{"$f":"IFERROR(INDEX(CâmpCine,MATCH(0,COUNTIF($A$2:A6,CâmpCine),0)),\"\")","v":""},""]
[{"$f":"IFERROR(INDEX(CâmpCine,MATCH(0,COUNTIF($A$2:A7,CâmpCine),0)),\"\")","v":""},""]
[{"$f":"IFERROR(INDEX(CâmpCine,MATCH(0,COUNTIF($A$2:A8,CâmpCine),0)),\"\")","v":""},""]
[{"$f":"IFERROR(INDEX(CâmpCine,MATCH(0,COUNTIF($A$2:A9,CâmpCine),0)),\"\")","v":""},""]
[{"$f":"IFERROR(INDEX(CâmpCine,MATCH(0,COUNTIF($A$2:A10,CâmpCine),0)),\"\")","v":""},""]
[{"$f":"IFERROR(INDEX(CâmpCine,MATCH(0,COUNTIF($A$2:A11,CâmpCine),0)),\"\")","v":""},""]
[{"$f":"IFERROR(INDEX(CâmpCine,MATCH(0,COUNTIF($A$2:A12,CâmpCine),0)),\"\")","v":""},""]
[{"$f":"IFERROR(INDEX(CâmpCine,MATCH(0,COUNTIF($A$2:A13,CâmpCine),0)),\"\")","v":""},""]
[{"$f":"IFERROR(INDEX(CâmpCine,MATCH(0,COUNTIF($A$2:A14,CâmpCine),0)),\"\")","v":""},""]
[{"$f":"IFERROR(INDEX(CâmpCine,MATCH(0,COUNTIF($A$2:A15,CâmpCine),0)),\"\")","v":""},""]
[{"$f":"IFERROR(INDEX(CâmpCine,MATCH(0,COUNTIF($A$2:A16,CâmpCine),0)),\"\")","v":""},""]
[{"$f":"IFERROR(INDEX(CâmpCine,MATCH(0,COUNTIF($A$2:A17,CâmpCine),0)),\"\")","v":""},""]
[{"$f":"IFERROR(INDEX(CâmpCine,MATCH(0,COUNTIF($A$2:A18,CâmpCine),0)),\"\")","v":""},""]
[{"$f":"IFERROR(INDEX(CâmpCine,MATCH(0,COUNTIF($A$2:A19,CâmpCine),0)),\"\")","v":""},""]
[{"$f":"IFERROR(INDEX(CâmpCine,MATCH(0,COUNTIF($A$2:A20,CâmpCine),0)),\"\")","v":""},""]
[{"$f":"IFERROR(INDEX(CâmpCine,MATCH(0,COUNTIF($A$2:A21,CâmpCine),0)),\"\")","v":""},""]
[{"$f":"IFERROR(INDEX(CâmpCine,MATCH(0,COUNTIF($A$2:A22,CâmpCine),0)),\"\")","v":""},""]
[{"$f":"IFERROR(INDEX(CâmpCine,MATCH(0,COUNTIF($A$2:A23,CâmpCine),0)),\"\")","v":""},""]
[{"$f":"IFERROR(INDEX(CâmpCine,MATCH(0,COUNTIF($A$2:A24,CâmpCine),0)),\"\")","v":""},""]
[{"$f":"IFERROR(INDEX(CâmpCine,MATCH(0,COUNTIF($A$2:A25,CâmpCine),0)),\"\")","v":""},""]
[{"$f":"IFERROR(INDEX(CâmpCine,MATCH(0,COUNTIF($A$2:A26,CâmpCine),0)),\"\")","v":""},""]
[{"$f":"IFERROR(INDEX(CâmpCine,MATCH(0,COUNTIF($A$2:A27,CâmpCine),0)),\"\")","v":""},""]
[{"$f":"IFERROR(INDEX(CâmpCine,MATCH(0,COUNTIF($A$2:A28,CâmpCine),0)),\"\")","v":""},""]
[{"$f":"IFERROR(INDEX(CâmpCine,MATCH(0,COUNTIF($A$2:A29,CâmpCine),0)),\"\")","v":""},""]
[{"$f":"IFERROR(INDEX(CâmpCine,MATCH(0,COUNTIF($A$2:A30,CâmpCine),0)),\"\")","v":""},""]
[{"$f":"IFERROR(INDEX(CâmpCine,MATCH(0,COUNTIF($A$2:A31,CâmpCine),0)),\"\")","v":""},""]
[{"$f":"IFERROR(INDEX(CâmpCine,MATCH(0,COUNTIF($A$2:A32,CâmpCine),0)),\"\")","v":""},""]
[{"$f":"IFERROR(INDEX(CâmpCine,MATCH(0,COUNTIF($A$2:A33,CâmpCine),0)),\"\")","v":""},""]
[{"$f":"IFERROR(INDEX(CâmpCine,MATCH(0,COUNTIF($A$2:A34,CâmpCine),0)),\"\")","v":""},""]
[{"$f":"IFERROR(INDEX(CâmpCine,MATCH(0,COUNTIF($A$2:A35,CâmpCine),0)),\"\")","v":""},""]
[{"$f":"IFERROR(INDEX(CâmpCine,MATCH(0,COUNTIF($A$2:A36,CâmpCine),0)),\"\")","v":""},""]
[{"$f":"IFERROR(INDEX(CâmpCine,MATCH(0,COUNTIF($A$2:A37,CâmpCine),0)),\"\")","v":""},""]
[{"$f":"IFERROR(INDEX(CâmpCine,MATCH(0,COUNTIF($A$2:A38,CâmpCine),0)),\"\")","v":""},""]
[{"$f":"IFERROR(INDEX(CâmpCine,MATCH(0,COUNTIF($A$2:A39,CâmpCine),0)),\"\")","v":""},""]
[{"$f":"IFERROR(INDEX(CâmpCine,MATCH(0,COUNTIF($A$2:A40,CâmpCine),0)),\"\")","v":""},""]
[{"$f":"IFERROR(INDEX(CâmpCine,MATCH(0,COUNTIF($A$2:A41,CâmpCine),0)),\"\")","v":""},""]
[{"$f":"IFERROR(INDEX(CâmpCine,MATCH(0,COUNTIF($A$2:A42,CâmpCine),0)),\"\")","v":""},""]
[{"$f":"IFERROR(INDEX(CâmpCine,MATCH(0,COUNTIF($A$2:A43,CâmpCine),0)),\"\")","v":""},""]
[{"$f":"IFERROR(INDEX(CâmpCine,MATCH(0,COUNTIF($A$2:A44,CâmpCine),0)),\"\")","v":""},""]
[{"$f":"IFERROR(INDEX(CâmpCine,MATCH(0,COUNTIF($A$2:A45,CâmpCine),0)),\"\")","v":""},""]
[{"$f":"IFERROR(INDEX(CâmpCine,MATCH(0,COUNTIF($A$2:A46,CâmpCine),0)),\"\")","v":""},""]
[{"$f":"IFERROR(INDEX(CâmpCine,MATCH(0,COUNTIF($A$2:A47,CâmpCine),0)),\"\")","v":""},""]
[{"$f":"IFERROR(INDEX(CâmpCine,MATCH(0,COUNTIF($A$2:A48,CâmpCine),0)),\"\")","v":""},""]
[{"$f":"IFERROR(INDEX(CâmpCine,MATCH(0,COUNTIF($A$2:A49,CâmpCine),0)),\"\")","v":""},""]
[{"$f":"IFERROR(INDEX(CâmpCine,MATCH(0,COUNTIF($A$2:A50,CâmpCine),0)),\"\")","v":""},""]
[{"$f":"IFERROR(INDEX(CâmpCine,MATCH(0,COUNTIF($A$2:A51,CâmpCine),0)),\"\")","v":""},""]
[{"$f":"IFERROR(INDEX(CâmpCine,MATCH(0,COUNTIF($A$2:A52,CâmpCine),0)),\"\")","v":""},""]
[{"$f":"IFERROR(INDEX(CâmpCine,MATCH(0,COUNTIF($A$2:A53,CâmpCine),0)),\"\")","v":""},""]
[{"$f":"IFERROR(INDEX(CâmpCine,MATCH(0,COUNTIF($A$2:A54,CâmpCine),0)),\"\")","v":""},""]
[{"$f":"IFERROR(INDEX(CâmpCine,MATCH(0,COUNTIF($A$2:A55,CâmpCine),0)),\"\")","v":""},""]
[{"$f":"IFERROR(INDEX(CâmpCine,MATCH(0,COUNTIF($A$2:A56,CâmpCine),0)),\"\")","v":""},""]
[{"$f":"IFERROR(INDEX(CâmpCine,MATCH(0,COUNTIF($A$2:A57,CâmpCine),0)),\"\")","v":""},""]
[{"$f":"IFERROR(INDEX(CâmpCine,MATCH(0,COUNTIF($A$2:A58,CâmpCine),0)),\"\")","v":""},""]
[{"$f":"IFERROR(INDEX(CâmpCine,MATCH(0,COUNTIF($A$2:A59,CâmpCine),0)),\"\")","v":""},""]
[{"$f":"IFERROR(INDEX(CâmpCine,MATCH(0,COUNTIF($A$2:A60,CâmpCine),0)),\"\")","v":""},""]
[{"$f":"IFERROR(INDEX(CâmpCine,MATCH(0,COUNTIF($A$2:A61,CâmpCine),0)),\"\")","v":""},""]
[{"$f":"IFERROR(INDEX(CâmpCine,MATCH(0,COUNTIF($A$2:A62,CâmpCine),0)),\"\")","v":""},""]
[{"$f":"IFERROR(INDEX(CâmpCine,MATCH(0,COUNTIF($A$2:A63,CâmpCine),0)),\"\")","v":""},""]
[{"$f":"IFERROR(INDEX(CâmpCine,MATCH(0,COUNTIF($A$2:A64,CâmpCine),0)),\"\")","v":""},""]
[{"$f":"IFERROR(INDEX(CâmpCine,MATCH(0,COUNTIF($A$2:A65,CâmpCine),0)),\"\")","v":""},""]
[{"$f":"IFERROR(INDEX(CâmpCine,MATCH(0,COUNTIF($A$2:A66,CâmpCine),0)),\"\")","v":""},""]
[{"$f":"IFERROR(INDEX(CâmpCine,MATCH(0,COUNTIF($A$2:A67,CâmpCine),0)),\"\")","v":""},{"$f":"IF(A68=\"\",\"\",ROW())","v":""}]
[{"$f":"IFERROR(INDEX(CâmpCine,MATCH(0,COUNTIF($A$2:A68,CâmpCine),0)),\"\")","v":""},""]
[{"$f":"IFERROR(INDEX(CâmpCine,MATCH(0,COUNTIF($A$2:A69,CâmpCine),0)),\"\")","v":""},""]
[{"$f":"IFERROR(INDEX(CâmpCine,MATCH(0,COUNTIF($A$2:A70,CâmpCine),0)),\"\")","v":""},""]
[{"$f":"IFERROR(INDEX(CâmpCine,MATCH(0,COUNTIF($A$2:A71,CâmpCine),0)),\"\")","v":""},""]
[{"$f":"IFERROR(INDEX(CâmpCine,MATCH(0,COUNTIF($A$2:A72,CâmpCine),0)),\"\")","v":""},""]
[{"$f":"IFERROR(INDEX(CâmpCine,MATCH(0,COUNTIF($A$2:A73,CâmpCine),0)),\"\")","v":""},""]
[{"$f":"IFERROR(INDEX(CâmpCine,MATCH(0,COUNTIF($A$2:A74,CâmpCine),0)),\"\")","v":""},""]
[{"$f":"IFERROR(INDEX(CâmpCine,MATCH(0,COUNTIF($A$2:A75,CâmpCine),0)),\"\")","v":""},""]
[{"$f":"IFERROR(INDEX(CâmpCine,MATCH(0,COUNTIF($A$2:A76,CâmpCine),0)),\"\")","v":""},""]
[{"$f":"IFERROR(INDEX(CâmpCine,MATCH(0,COUNTIF($A$2:A77,CâmpCine),0)),\"\")","v":""},""]
[{"$f":"IFERROR(INDEX(CâmpCine,MATCH(0,COUNTIF($A$2:A78,CâmpCine),0)),\"\")","v":""},""]
[{"$f":"IFERROR(INDEX(CâmpCine,MATCH(0,COUNTIF($A$2:A79,CâmpCine),0)),\"\")","v":""},""]
[{"$f":"IFERROR(INDEX(CâmpCine,MATCH(0,COUNTIF($A$2:A80,CâmpCine),0)),\"\")","v":""},""]
[{"$f":"IFERROR(INDEX(CâmpCine,MATCH(0,COUNTIF($A$2:A81,CâmpCine),0)),\"\")","v":""},""]
[{"$f":"IFERROR(INDEX(CâmpCine,MATCH(0,COUNTIF($A$2:A82,CâmpCine),0)),\"\")","v":""},""]
[{"$f":"IFERROR(INDEX(CâmpCine,MATCH(0,COUNTIF($A$2:A83,CâmpCine),0)),\"\")","v":""},""]
[{"$f":"IFERROR(INDEX(CâmpCine,MATCH(0,COUNTIF($A$2:A84,CâmpCine),0)),\"\")","v":""},""]
[{"$f":"IFERROR(INDEX(CâmpCine,MATCH(0,COUNTIF($A$2:A85,CâmpCine),0)),\"\")","v":""},""]
[{"$f":"IFERROR(INDEX(CâmpCine,MATCH(0,COUNTIF($A$2:A86,CâmpCine),0)),\"\")","v":""},""]
[{"$f":"IFERROR(INDEX(CâmpCine,MATCH(0,COUNTIF($A$2:A87,CâmpCine),0)),\"\")","v":""},""]
[{"$f":"IFERROR(INDEX(CâmpCine,MATCH(0,COUNTIF($A$2:A88,CâmpCine),0)),\"\")","v":""},""]
[{"$f":"IFERROR(INDEX(CâmpCine,MATCH(0,COUNTIF($A$2:A89,CâmpCine),0)),\"\")","v":""},""]
[{"$f":"IFERROR(INDEX(CâmpCine,MATCH(0,COUNTIF($A$2:A90,CâmpCine),0)),\"\")","v":""},""]
[{"$f":"IFERROR(INDEX(CâmpCine,MATCH(0,COUNTIF($A$2:A91,CâmpCine),0)),\"\")","v":""},""]
[{"$f":"IFERROR(INDEX(CâmpCine,MATCH(0,COUNTIF($A$2:A92,CâmpCine),0)),\"\")","v":""},""]
[{"$f":"IFERROR(INDEX(CâmpCine,MATCH(0,COUNTIF($A$2:A93,CâmpCine),0)),\"\")","v":""},""]
[{"$f":"IFERROR(INDEX(CâmpCine,MATCH(0,COUNTIF($A$2:A94,CâmpCine),0)),\"\")","v":""},""]
[{"$f":"IFERROR(INDEX(CâmpCine,MATCH(0,COUNTIF($A$2:A95,CâmpCine),0)),\"\")","v":""},""]
[{"$f":"IFERROR(INDEX(CâmpCine,MATCH(0,COUNTIF($A$2:A96,CâmpCine),0)),\"\")","v":""},""]
[{"$f":"IFERROR(INDEX(CâmpCine,MATCH(0,COUNTIF($A$2:A97,CâmpCine),0)),\"\")","v":""},""]
[{"$f":"IFERROR(INDEX(CâmpCine,MATCH(0,COUNTIF($A$2:A98,CâmpCine),0)),\"\")","v":""},""]
[{"$f":"IFERROR(INDEX(CâmpCine,MATCH(0,COUNTIF($A$2:A99,CâmpCine),0)),\"\")","v":""},""]
[{"$f":"IFERROR(INDEX(CâmpCine,MATCH(0,COUNTIF($A$2:A100,CâmpCine),0)),\"\")","v":""},""]
[{"$f":"IFERROR(INDEX(CâmpCine,MATCH(0,COUNTIF($A$2:A101,CâmpCine),0)),\"\")","v":""},""]
[{"$f":"IFERROR(INDEX(CâmpCine,MATCH(0,COUNTIF($A$2:A102,CâmpCine),0)),\"\")","v":""},""]
[{"$f":"IFERROR(INDEX(CâmpCine,MATCH(0,COUNTIF($A$2:A103,CâmpCine),0)),\"\")","v":""},""]
[{"$f":"IFERROR(INDEX(CâmpCine,MATCH(0,COUNTIF($A$2:A104,CâmpCine),0)),\"\")","v":""},""]
[{"$f":"IFERROR(INDEX(CâmpCine,MATCH(0,COUNTIF($A$2:A105,CâmpCine),0)),\"\")","v":""},""]
[{"$f":"IFERROR(INDEX(CâmpCine,MATCH(0,COUNTIF($A$2:A106,CâmpCine),0)),\"\")","v":""},""]
[{"$f":"IFERROR(INDEX(CâmpCine,MATCH(0,COUNTIF($A$2:A107,CâmpCine),0)),\"\")","v":""},""]
[{"$f":"IFERROR(INDEX(CâmpCine,MATCH(0,COUNTIF($A$2:A108,CâmpCine),0)),\"\")","v":""},""]
[{"$f":"IFERROR(INDEX(CâmpCine,MATCH(0,COUNTIF($A$2:A109,CâmpCine),0)),\"\")","v":""},""]
[{"$f":"IFERROR(INDEX(CâmpCine,MATCH(0,COUNTIF($A$2:A110,CâmpCine),0)),\"\")","v":""},""]
[{"$f":"IFERROR(INDEX(CâmpCine,MATCH(0,COUNTIF($A$2:A111,CâmpCine),0)),\"\")","v":""},""]
[{"$f":"IFERROR(INDEX(CâmpCine,MATCH(0,COUNTIF($A$2:A112,CâmpCine),0)),\"\")","v":""},""]
[{"$f":"IFERROR(INDEX(CâmpCine,MATCH(0,COUNTIF($A$2:A113,CâmpCine),0)),\"\")","v":""},""]
[{"$f":"IFERROR(INDEX(CâmpCine,MATCH(0,COUNTIF($A$2:A114,CâmpCine),0)),\"\")","v":""},""]
[{"$f":"IFERROR(INDEX(CâmpCine,MATCH(0,COUNTIF($A$2:A115,CâmpCine),0)),\"\")","v":""},""]
[{"$f":"IFERROR(INDEX(CâmpCine,MATCH(0,COUNTIF($A$2:A116,CâmpCine),0)),\"\")","v":""},""]
[{"$f":"IFERROR(INDEX(CâmpCine,MATCH(0,COUNTIF($A$2:A117,CâmpCine),0)),\"\")","v":""},""]
[{"$f":"IFERROR(INDEX(CâmpCine,MATCH(0,COUNTIF($A$2:A118,CâmpCine),0)),\"\")","v":""},""]
[{"$f":"IFERROR(INDEX(CâmpCine,MATCH(0,COUNTIF($A$2:A119,CâmpCine),0)),\"\")","v":""},""]
[{"$f":"IFERROR(INDEX(CâmpCine,MATCH(0,COUNTIF($A$2:A120,CâmpCine),0)),\"\")","v":""},""]
[{"$f":"IFERROR(INDEX(CâmpCine,MATCH(0,COUNTIF($A$2:A121,CâmpCine),0)),\"\")","v":""},""]
[{"$f":"IFERROR(INDEX(CâmpCine,MATCH(0,COUNTIF($A$2:A122,CâmpCine),0)),\"\")","v":""},""]
[{"$f":"IFERROR(INDEX(CâmpCine,MATCH(0,COUNTIF($A$2:A123,CâmpCine),0)),\"\")","v":""},""]
[{"$f":"IFERROR(INDEX(CâmpCine,MATCH(0,COUNTIF($A$2:A124,CâmpCine),0)),\"\")","v":""},""]
[{"$f":"IFERROR(INDEX(CâmpCine,MATCH(0,COUNTIF($A$2:A125,CâmpCine),0)),\"\")","v":""},""]
[{"$f":"IFERROR(INDEX(CâmpCine,MATCH(0,COUNTIF($A$2:A126,CâmpCine),0)),\"\")","v":""},""]
[{"$f":"IFERROR(INDEX(CâmpCine,MATCH(0,COUNTIF($A$2:A127,CâmpCine),0)),\"\")","v":""},""]
[{"$f":"IFERROR(INDEX(CâmpCine,MATCH(0,COUNTIF($A$2:A128,CâmpCine),0)),\"\")","v":""},""]
[{"$f":"IFERROR(INDEX(CâmpCine,MATCH(0,COUNTIF($A$2:A129,CâmpCine),0)),\"\")","v":""},""]
[{"$f":"IFERROR(INDEX(CâmpCine,MATCH(0,COUNTIF($A$2:A130,CâmpCine),0)),\"\")","v":""},""]
[{"$f":"IFERROR(INDEX(CâmpCine,MATCH(0,COUNTIF($A$2:A131,CâmpCine),0)),\"\")","v":""},{"$f":"IF(A132=\"\",\"\",ROW())","v":""}]